Cogmind - Beta 16 @@@ ROGUE MODE // 2025.12.06 @ 10:46:19 Player: ForestDarkPsy Result: Self-destructed Performance ------------- Evolutions (3) 1500 Regions Visited (6) 1200 Robots Destroyed (39) 195 Value Destroyed (1389) 1389 Prototype IDs (29) 580 Alien Tech Used (0) 0 Bonus (335) 335 TOTAL SCORE: 5199 Bonus ------- Follower Combat Kills 35 Aligned with FarCom 300 Cogmind --------- Core Integrity 575/700 Matter 300/300 Energy 290/290 System Corruption 0% Temperature Cool (0) Movement Walking (187) Ox1 Location -7/Factory Parts ------- > --- POWER (1) -------- Improved Deuterium Engine > --- PROPULSION (4) --- Aluminum Leg Improved Titanium Leg > --- UTILITY (5) ------ Improved Cooling System Large Storage Unit Structural Scanner 0b10 Alert Chip Corruption Screen > --- WEAPON (3) ------- Particle Gun Particle Gun > --- INVENTORY (15) --- Micro Fission Core Improved Cooling System Trap Scanner Improved Terrain Scanner Advanced Terrain Scan Processor EM Disruption Field System Shield Corruption Screen System Restoration Module Heavy EM Shotgun Heavy EM Shotgun Cooled Particle Cannon Rocket Launcher Axe Peak State ------------ > --- POWER ------------ Light Nuclear Core > --- PROPULSION ------- Aluminum Leg Aluminum Leg Carbon-fiber Leg Improved Titanium Leg > --- UTILITY ---------- Improved Cooling System Large Storage Unit 0b10 Alert Chip Hacking Suite Corruption Screen > --- WEAPON ----------- Beam Rifle Beam Rifle Particle Gun > --- INVENTORY -------- Aluminum Leg Improved Cooling System Trap Scanner Improved Terrain Scanner Advanced Terrain Scan Processor Light Armor Plating EM Disruption Field System Shield System Restoration Module Improved Trap Extractor Heavy EM Shotgun Heavy EM Shotgun Rocket Launcher Hammer [Rating: 40] Favorites ----------- Power Light Ion Engine Engine Light Ion Engine Power Core Light Nuclear Core Propulsion Aluminum Leg Leg Aluminum Leg Utility Structural Scanner Device Structural Scanner Storage Large Storage Unit Processor 0b10 Alert Chip Hackware Hacking Suite Protection Light Armor Plating Weapon Particle Gun Energy Gun Particle Gun Energy Cannon EM Pulse Cannon Ballistic Gun Light Assault Rifle Launcher Grenade Launcher Impact Weapon Hammer Build | -11 -10 -10 -10 -9 -8 -7 ------- Run | Yrd Mat Min Exi Min Mat Fac Slots Evolved 6 | . . . . . 4 2 Power . | . . . . . . . Propulsion 2 | . . . . . 2 . Utility 3 | . . . . . 1 2 Weapon 1 | . . . . . 1 . Parts Attached 47 | 6 13 2 . . 11 15 Power 5 | 1 1 . . . 1 2 Engine 3 | 1 1 . . . . 1 Core 2 | . . . . . 1 1 Reactor . | . . . . . . . Propulsion 12 | 2 4 . . . 3 3 Treads . | . . . . . . . Leg 12 | 2 4 . . . 3 3 Wheel . | . . . . . . . Hover . | . . . . . . . Flight . | . . . . . . . Utility 17 | 1 6 . . . 4 6 Device 7 | . 4 . . . . 3 Storage 3 | 1 1 . . . 1 . Processor 4 | . 1 . . . 1 2 Hackware 2 | . . . . . 1 1 Protection 1 | . . . . . 1 . Artifact . | . . . . . . . Weapon 13 | 2 2 2 . . 3 4 Energy Gun 6 | 1 1 . . . 1 3 Energy Cannon 2 | . . . . . 1 1 Ballistic Gun 2 | 1 1 . . . . . Ballistic Cannon . | . . . . . . . Launcher 2 | . . 1 . . 1 . Special Weapon . | . . . . . . . Impact Weapon 1 | . . 1 . . . . Slashing Weapon . | . . . . . . . Piercing Weapon . | . . . . . . . Special Melee Weapon . | . . . . . . . Unidentified Prototypes 1 | . . . . . . 1 Parts Lost 6 | . . . . . 2 4 Power . | . . . . . . . Propulsion 5 | . . . . . 1 4 Utility . | . . . . . . . Weapon 1 | . . . . . 1 . Highest Loss Streak 1 | . . . . . 1 1 To Critical Strikes . | . . . . . . . Average Backups 8 | . 4 3 5 5 8 13 Power . | . . . . . . . Propulsion . | . . . . . . . Utility 5 | . 2 3 4 4 5 9 Weapon 2 | . 1 . 1 1 2 3 Tool/Special . | . . . . . . . Unused Backups 18 | . 2 . 1 . . 15 Power 1 | . . . . . . 1 Propulsion . | . . . . . . . Utility 12 | . . . 1 . . 11 Weapon 5 | . 2 . . . . 3 Tool/Special . | . . . . . . . Average Slot Usage (%) 97 | . 96 99 100 100 94 99 Engine 7 | . 14 14 14 14 5 1 Core 2 | . . . . . 3 5 Leg 29 | . 28 28 28 28 31 29 Device 15 | . 12 28 28 28 8 12 Storage 4 | . 3 . . . 7 7 Processor 7 | . 8 . . . 3 11 Hackware 2 | . . . . . 5 3 Energy Gun 7 | . 1 . . . . 18 Energy Cannon 1 | . . . . . 6 1 Ballistic Gun 5 | . 26 . . . . . Launcher 4 | . . 13 14 14 9 1 Impact Weapon 5 | . . 13 14 14 9 1 Peak Build Rating 40 | 6 8 8 8 8 22 40 Average Rating 20 | 3 6 7 7 8 18 35 On Entrance 8 | . 6 8 8 8 8 22 Avg Prop Armor Cover (%) . | . . . . . . . Naked Turns . | . . . . . . . Heaviest Build 48 | 12 16 10 10 10 38 48 Greatest Support 55 | 20 20 20 20 20 45 55 Greatest Overweight (x) 1 | . . . . . . 1 Average Overweight (x) . | . . . . . . . Largest Inventory Capacity 15 | 8 10 5 5 5 15 15 Average Capacity 10 | 6 5 5 5 5 13 15 Most Carried 15 | . 6 5 5 5 12 15 Average Carried 8 | . 4 3 4 5 8 13 Final Capacity 15 | 8 5 5 5 5 15 15 Final Carried 14 | . 5 5 5 5 11 14 Class Distribution -------------------- 45% | Mutant 30% | Scavenger-Skirmisher 10% | Scavenger-Assassin 10% | Scavenger-Mutant Dominant Class ---------------- Mutant | -10/Materials Mutant | -10/Mines Mutant | -10/Exiles Mutant | -9/Mines Scavenger-Mutant | -8/Materials Scavenger-Skirmisher | -7/Factory Resources | -11 -10 -10 -10 -9 -8 -7 ----------- Run | Yrd Mat Min Exi Min Mat Fac Matter Collected 1037 | 255 125 52 . 102 184 319 Remotely . | . . . . . . . Salvage Created 1423 | . 177 . . 13 584 649 Parts 69 | . 14 . . 3 29 23 Haulers Intercepted 1 | . . . . . . 1 Recyclers Shooed 1 | . . . . . 1 . Parts Field Recycled . | . . . . . . . Retrieved Matter . | . . . . . . . Parts Self-Destructed . | . . . . . . . Prevented . | . . . . . . . Parts Restored . | . . . . . . . Kills | -11 -10 -10 -10 -9 -8 -7 ------- Run | Yrd Mat Min Exi Min Mat Fac Combat Hostiles Destroyed 30 | . 5 . . 2 14 9 Melee 3 | . . . . . 3 . Guns 10 | . 5 . . . . 5 Cannons 1 | . . . . . . 1 AOE 10 | . . . . 2 8 . Classes Destroyed 10 | . 3 . . . 4 3 Worker 2 | . . . . . 1 1 Builder 2 | . . . . . 2 . Hauler 1 | . . . . . . 1 Recycler 2 | . . . . . 1 1 Operator 2 | . 1 . . . . 1 Swarmer 3 | . 1 . . 2 . . Grunt 19 | . 4 . . . 12 3 Sentry 4 | . . . . . 2 2 Hunter 1 | . . . . . . 1 Programmer 3 | . . . . . . 3 Best Kill Streak 9 | . 2 . . 2 9 3 Combat Bots Only 5 | . 2 . . 2 5 2 Max Kills in Single Turn 3 | . 1 . . 2 3 1 Gunslinging . | . . . . . . . Exploded 2 | . . . . 2 2 . Melee 1 | . . . . . 1 . Uniques/NPCs Destroyed . | . . . . . . . Combat | -11 -10 -10 -10 -9 -8 -7 -------- Run | Yrd Mat Min Exi Min Mat Fac Hostile Shots Fired 189 | . 23 . . 1 37 128 Missed 72 | . 7 . . 1 12 52 Hits 117 | . 16 . . . 25 76 Projectile 117 | . 16 . . . 25 76 Critical Strikes 2 | . . . . . . 2 Damage Taken 1482 | . 208 . . . 425 849 Core 199 | . 23 . . . 51 125 Absorbed by Shields . | . . . . . . . Core Remaining (%) 93 | 100 . . . 90 90 . Volleys Fired 94 | . 31 . . 2 11 50 Largest 3 | . 2 . . 1 2 3 Hottest 186 | . 40 . . 30 63 186 Shots Fired 194 | . 62 . . 2 13 117 Gun 159 | . 62 . . . . 97 Cannon 22 | . . . . . 2 20 Launcher 13 | . . . . 2 11 . Special . | . . . . . . . Kinetic 62 | . 62 . . . . . Thermal 113 | . . . . . . 113 Explosive 13 | . . . . 2 11 . Electromagnetic 6 | . . . . . 2 4 Robot Hit Streak 12 | . 9 . . . 7 12 Robot Miss Streak 3 | . 3 . . . 3 3 Penetration Max . | . . . . . . . Secondary Targets . | . . . . . . . Shots Hit Robots 161 | . 42 . . . 27 92 Core Hits 65 | . 14 . . 2 24 25 Critical Kills . | . . . . . . . Critical Parts Destroyed 3 | . . . . . 3 . Critical Strikes 6 | . . . . . 3 3 Burn 3 | . . . . . . 3 Smash 3 | . . . . . 3 . Melee Attacks 41 | . . . . . 31 10 Impact 41 | . . . . . 31 10 Slashing . | . . . . . . . Piercing . | . . . . . . . Sneak Attacks 3 | . . . . . 2 1 Combat Hostiles 1 | . . . . . 1 . Follow-up Attacks . | . . . . . . . Damage Inflicted 3927 | . 440 . . 180 1478 1829 Guns 1640 | . 440 . . . . 1200 Cannons 487 | . . . . . 46 441 Explosions 1050 | . . . . 180 870 . Melee 741 | . . . . . 562 179 Ramming 9 | . . . . . . 9 Kinetic 440 | . 440 . . . . . Thermal 1533 | . . . . . . 1533 Explosive 1050 | . . . . 180 870 . Electromagnetic 154 | . . . . . 46 108 Impact 741 | . . . . . 562 179 Slashing . | . . . . . . . Piercing . | . . . . . . . Highest Corruption . | . . . . . . . Average Corruption . | . . . . . . . Corruption Purged . | . . . . . . . Corruption Blocked 2 | . . . . . . 2 Overload Shots . | . . . . . . . Overflow Damage 145 | . . . . 1 118 26 Projectiles 30 | . . . . . 11 19 Explosions 19 | . . . . 1 18 . Melee 96 | . . . . . 89 7 Knockbacks 3 | . . . . . 3 . Impact 3 | . . . . . 3 . Kinetic . | . . . . . . . Secondary . | . . . . . . . Self-Inflicted Damage 27 | . . . . . 27 . Shots 1 | . . . . . 1 . Rammed . | . . . . . . . Targets Rammed 1 | . . . . . . 1 Kicked 1 | . . . . . . 1 Crushed . | . . . . . . . Highest Temperature 126 | . 12 . . . 28 126 Average Temperature 28 | . 8 . . . 8 32 Received Heat Transfer 456 | . 60 . . . 225 171 Siege Activations . | . . . . . . . Martial Activations . | . . . . . . . Shielding Activations . | . . . . . . . Robots Disrupted . | . . . . . . . Combat Hostiles . | . . . . . . . Robots Corrupted 4 | . . . . . 3 1 Combat Hostiles 4 | . . . . . 3 1 Parts Fried 6 | . . . . . 5 1 Impact Corruptions 5 | . . . . . 4 1 Robots Melted 3 | . . . . . . 3 Combat Hostiles 2 | . . . . . . 2 Parts Melted 12 | . . . . . 1 11 Heat Transferred 3367 | . . . . . . 3367 Parts Sabotaged . | . . . . . . . Parts Stolen . | . . . . . . . Parts Stripped . | . . . . . . . Power Chain Reactions . | . . . . . . . Alert | -11 -10 -10 -10 -9 -8 -7 ------- Run | Yrd Mat Min Exi Min Mat Fac Maximum Alert Level 1 | . . . . . 1 . Low Security (%) 99 | 100 100 100 . 100 99 100 Level 1 . | . . . . . . . Level 2 . | . . . . . . . Level 3 . | . . . . . . . Level 4 . | . . . . . . . Level 5 . | . . . . . . . High Security . | . . . . . . . Max Security . | . . . . . . . Peak Influence 202 | . 50 5 . 85 202 97 Initial 88 | . . 5 . . 25 88 Average 23 | . 8 . . 10 85 18 Influence Increases 1024 | . 192 . . 85 468 279 Destroy 0b10 Robot/C 584 | . 100 . . 40 300 144 Destroy 0b10 Robot/NC 41 | . 5 . . . 20 16 Destroy Leader 158 | . 30 . . 10 60 58 Allied During Kill 21 | . . . . 8 13 . Successful Hack 69 | . 27 . . . 18 24 Select Force Hacks 24 | . . . . . . 24 Destroy Structure 70 | . . . . 12 57 1 Lose Combat Pursuer 57 | . 30 . . 15 . 12 Influence Decreases 1000 | . 178 14 . 20 339 449 Entered New Map 155 | . . 9 . . 40 106 Time Decay 761 | . 178 5 . 20 239 319 Lost Part 44 | . . . . . 20 24 Lost Ally 40 | . . . . . 40 . Squads Dispatched 10 | . 2 . . . 1 7 Investigation 1 | . . . . . . 1 Extermination 3 | . . . . . . 3 Reinforcement 6 | . 2 . . . 1 3 Assault . | . . . . . . . Garrison . | . . . . . . . Intercept . | . . . . . . . Searches Triggered . | . . . . . . . Construction Impeded 1 | . . . . . 1 . Haulers Reinforced 1 | . . . . . . 1 Active Scanning Responses . | . . . . . . . Cargo Convoy Interrupts 1 | . . . . . . 1 Stealth | -11 -10 -10 -10 -9 -8 -7 --------- Run | Yrd Mat Min Exi Min Mat Fac Distress Signals 4 | . 3 . . . . 1 Communications Jammed . | . . . . . . . Distress Signals . | . . . . . . . Times Spotted 55 | . 19 . . 3 17 16 Peak Tracking Total 5 | . 5 . . 3 5 3 Tactical Retreats 3 | . 1 . . 1 . 1 Traps | -11 -10 -10 -10 -9 -8 -7 ------- Run | Yrd Mat Min Exi Min Mat Fac Traps Triggered 1 | . 1 . . . . . Indirectly . | . . . . . . . Trap Hack Attempts . | . . . . . . . Triggered . | . . . . . . . Disarmed . | . . . . . . . Reprogrammed . | . . . . . . . Reused . | . . . . . . . Traps Extracted . | . . . . . . . Installed . | . . . . . . . Triggered . | . . . . . . . Machines | -11 -10 -10 -10 -9 -8 -7 ---------- Run | Yrd Mat Min Exi Min Mat Fac Machines Disabled . | . . . . . . . Max in Single Turn . | . . . . . . . Machines Repaired . | . . . . . . . Machines Dismantled . | . . . . . . . Machines Sabotaged . | . . . . . . . Overloaded Fab Kills . | . . . . . . . Hacking | -11 -10 -10 -10 -9 -8 -7 --------- Run | Yrd Mat Min Exi Min Mat Fac Machines Accessed 18 | . 6 . 1 . 4 7 Terminals 13 | . 6 . . . 2 5 Fabricators 1 | . . . . . . 1 Repair Stations . | . . . . . . . Recycling Units 1 | . . . . . 1 . Scanalyzers 2 | . . . . . 1 1 Garrison Access . | . . . . . . . Total Hacks 51 | . 21 . 1 . 7 22 Successful 30 | . 11 . 1 . 6 12 Failed 21 | . 10 . . . 1 10 Catastrophic 1 | . . . . . . 1 Database Lockouts . | . . . . . . . Manual 16 | . 6 . 1 . 2 7 Terminals 42 | . 21 . . . 4 17 Fabricators 1 | . . . . . . 1 Repair Stations . | . . . . . . . Recycling Units 2 | . . . . . 2 . Scanalyzers 5 | . . . . . 1 4 Garrison Access . | . . . . . . . Terminal Hacks 20 | . 10 . 1 . 3 6 Part Schematic 1 | . . . . . . 1 Robot Analysis 2 | . 1 . . . 1 . Prototype ID Bank 2 | . 1 . . . . 1 Branch Access Points 1 | . . . . . . 1 Terminal Index 2 | . . . . . 1 1 Alert Level 1 | . . . . . . 1 Locate Traps 4 | . 3 . . . 1 . Hauler Manifests 1 | . 1 . . . . . Registered Components 1 | . 1 . . . . . Zone Layout 4 | . 3 . . . . 1 Proto ID Catalog 1 | . . . 1 . . . Fabricator Hacks . | . . . . . . . Repair Station Hacks . | . . . . . . . Recycling Unit Hacks 2 | . . . . . 2 . Report Inventory 1 | . . . . . 1 . Retrieve Components 1 | . . . . . 1 . Scanalyzer 4 | . . . . . 1 3 Insert Component 1 | . . . . . . 1 Analyze 1 | . . . . . . 1 Retrieve Study 2 | . . . . . 1 1 Garrison Access Hacks . | . . . . . . . Unauthorized Hacks 4 | . 1 . . . . 3 Terminals 3 | . 1 . . . . 2 Botnet 3 | . 1 . . . . 2 Fabricators . | . . . . . . . Repair Stations . | . . . . . . . Recycling Units . | . . . . . . . Scanalyzers 1 | . . . . . . 1 Extract 1 | . . . . . . 1 Garrison Access . | . . . . . . . Data Cores Recovered 1 | . 1 . . . . . Used . | . . . . . . . Hacking Detections 14 | . 6 . . . 1 7 Full Trace Events . | . . . . . . . Feedback Events . | . . . . . . . Feedback Blocked . | . . . . . . . Robot Schematics Acquired . | . . . . . . . Robots Built . | . . . . . . . Authchips . | . . . . . . . Time . | . . . . . . . Total Robot Build Rating . | . . . . . . . Part Schematics Acquired 3 | . . . . . . 3 Parts Built . | . . . . . . . Authchips . | . . . . . . . Time . | . . . . . . . Total Part Build Rating . | . . . . . . . Part Studies Acquired 2 | . . . . . 1 1 Parts Repaired . | . . . . . . . Time . | . . . . . . . Parts Recycled . | . . . . . . . Recycled Matter . | . . . . . . . Retrieved Matter . | . . . . . . . Retrieved Components 9 | . . . . . 9 . Parts Scanalyzed 1 | . . . . . . 1 Part Schematics Acquired 1 | . . . . . . 1 Parts Damaged . | . . . . . . . Bothacking | -11 -10 -10 -10 -9 -8 -7 ------------ Run | Yrd Mat Min Exi Min Mat Fac Used RIF Installer . | . . . . . . . Robots Hacked . | . . . . . . . Non-combat . | . . . . . . . Combat . | . . . . . . . Robot Hacks Applied . | . . . . . . . Relay Couplers Released 4 | . . . . . . 4 Programmers 4 | . . . . . . 4 Fabnet Peak Effective % . | . . . . . . . Robots Rewired . | . . . . . . . Allies Hacked . | . . . . . . . Hacks Repelled . | . . . . . . . Allies | -11 -10 -10 -10 -9 -8 -7 -------- Run | Yrd Mat Min Exi Min Mat Fac Total Allies 3 | . . . . 3 . . Largest Group 3 | . . . . 3 3 . Highest-Rated Group 40 | . . . . 40 40 . Highest-Rated Ally 16 | . . . . 16 16 . Total Orders 1 | . . . . . 1 . STAY 1 | . . . . . 1 . Ally Attacks 24 | . . . . 4 20 . Total Damage 218 | . . . . . 218 . Kills 1 | . . . . . 1 . Allies Corrupted . | . . . . . . . Allies Melted . | . . . . . . . Intel | -11 -10 -10 -10 -9 -8 -7 ------- Run | Yrd Mat Min Exi Min Mat Fac Active Infowar (turns) 3455 | . 703 310 259 359 555 1269 Optics 192 | . . . . . 192 . Sensors 625 | . 625 . . . . . Structural 2286 | . 72 310 259 359 463 823 Traps 594 | . . . . . . 594 Seismic 1121 | . 160 310 259 359 33 . Robot Analysis Total 2 | . 1 . . . 1 . Derelict Logs Recovered 2 | . . 1 . 1 . . Drone Launches . | . . . . . . . Drone Recoveries . | . . . . . . . Exploration | -11 -10 -10 -10 -9 -8 -7 ------------- Run | Yrd Mat Min Exi Min Mat Fac Turns Passed 4194 | 43 928 310 259 359 555 1740 Spaces Moved 2980 | 31 628 254 215 269 337 1246 Core 3 | 3 . . . . . . Treads . | . . . . . . . Legs 2977 | 28 628 254 215 269 337 1246 Wheels . | . . . . . . . Hover . | . . . . . . . Flight . | . . . . . . . Fastest Speed 50 | 50 120 120 120 120 105 105 Average Speed 114 | 113 120 120 120 120 109 110 Slowest Speed 183 | 120 120 120 120 120 120 183 Overloaded Moves . | . . . . . . . Propulsion Burnouts . | . . . . . . . Robots Hopped . | . . . . . . . Potential Cave-ins . | . . . . . . . Cave-ins Triggered . | . . . . . . . Exploration Rate (%) 52 | 4 97 78 60 59 38 34 Regions Visited 6 Branch Regions 3 Pre-discovered Areas 2 | . . 1 . 1 . . Known Exits Taken 1 | . 1 . . . . . Unknown Exits Taken 5 | 1 . 1 1 1 1 . Scrap Searched 3 | . . 1 . 2 . . Spaces Dug 2 | . . . . . 2 . Terrain Destroyed 95 | . . . . 15 80 . Melee 2 | . . . . . 2 . Projectile . | . . . . . . . AOE 93 | . . . . 15 78 . Terrain Rammed . | . . . . . . . Walls Destroyed . | . . . . . . . Machines Disabled . | . . . . . . . Actions | -11 -10 -10 -10 -9 -8 -7 --------- Run | Yrd Mat Min Exi Min Mat Fac Total 3526 | 36 752 260 216 303 457 1502 Wait 270 | . 54 1 . 33 48 134 Move 2974 | 30 627 253 214 268 336 1246 Hop . | . . . . . . . Pick Up 45 | . 13 2 1 . 12 17 Fast Attach 12 | 6 2 . . . 3 1 Attach 26 | . 4 2 . . 9 11 Detach 6 | . . . . . 3 3 Swap 21 | . 7 . . . 1 13 Drop 36 | . 14 2 1 . 3 16 Fire 94 | . 31 . . 2 11 50 Melee 41 | . . . . . 31 10 Ram . | . . . . . . . Kick 1 | . . . . . . 1 Crush . | . . . . . . . Escape Stasis . | . . . . . . . Rewire . | . . . . . . . Trap . | . . . . . . . Miscellaneous . | . . . . . . . Route ------- -11/Scrapyard -10/Materials (discovered 4 exits: *Mat x3 / *Min) -10/Mines (discovered 3 exits: *Mat x2 / *Exi) -10/Exiles -9/Mines -8/Materials -7/Factory (discovered 4 exits: *Sto x2 / Low x2) History --------- Turn | Location | Event 4 | -11/Scrapyard | Discovered new exit (range 15) 44 | -11/Scrapyard | Entered Materials 126 | -10/Materials | Discovered new exit (range 14) 226 | -10/Materials | Discovered new exit (range 16) 267 | -10/Materials | Identified exit to Materials 308 | -10/Materials | Build established: Mutant 324 | -10/Materials | Discovered new exit (range 10) 544 | -10/Materials | Derelicts attacked the area 643 | -10/Materials | Discovered exit to Materials (range 16) 781 | -10/Materials | Identified exit to Mines 972 | -10/Materials | Entered Mines 1015 | -10/Mines | Discovered exit to Materials (range 11) 1017 | -10/Mines | Learned location of Storage (-7) 1113 | -10/Mines | Received a Rocket Launcher from a helpful Derelict 1209 | -10/Mines | Assembled infested the area 1257 | -10/Mines | Learned Materials non-interactive machine intel 1260 | -10/Mines | Discovered exit to Materials (range 10) 1277 | -10/Mines | Discovered new exit (range 5) 1282 | -10/Mines | Entered Exiles 1311 | -10/Exiles | Met 8R-AWN 1332 | -10/Exiles | Met EX-HEX 1365 | -10/Exiles | Met EX-BIN 1381 | -10/Exiles | Aligned with FarCom system 1382 | -10/Exiles | Given EX-Vault access code 1411 | -10/Exiles | Opened EX-Vault 1420 | -10/Exiles | Found 0b10 Alert Chip 1444 | -10/Exiles | Warned to stay clear of 0b10 Research branches 1478 | -10/Exiles | Met EX-DEC 1530 | -10/Exiles | Discovered new exit (range 10) 1541 | -10/Exiles | Left Exiles lab with 0b10 Alert Chip 1541 | -10/Exiles | Entered Mines 1547 | -9/Mines | Learned location of Recycling (-7) 1761 | -9/Mines | Assisted by bots powering up and referring to "LRC-V3" 1861 | -9/Mines | Discovered new exit (range 9) 1900 | -9/Mines | Entered Materials 1900 | -8/Materials | Accompanied by 3 allies 1900 | -8/Materials | Evolved 4 slots: Propulsion x2, Utility x1, Weapon x1 1901 | -8/Materials | Loaded intel: 42 non-interactive machine locations 2310 | -8/Materials | Build established: Scavenger-Mutant 2443 | -8/Materials | Discovered new exit (range 11) 2455 | -8/Materials | Entered Factory 2455 | -7/Factory | Evolved 2 slots: Utility x2 2557 | -7/Factory | Discovered new exit (range 15) 2761 | -7/Factory | Build established: Scavenger-Assassin 3195 | -7/Factory | Build established: Scavenger-Skirmisher 3404 | -7/Factory | Identified exit to Storage 3404 | -7/Factory | Identified exit to Lower Caves 3886 | -7/Factory | Cargo convoy interrupted 4195 | -7/Factory | Self-destructed Last Messages --------------- 04174_ K-01 Serf collects debris. 04175_ Acquired 10 matter. 04177_ K-01 Serf collects debris. 04178_ U-05 Engineer lays Concrete. 04180_ K-01 Serf collects debris. 04180_ U-05 Engineer builds a Wall. 04180_ K-01 Serf collects debris. 04185_ U-05 Engineer lays Concrete. 04186_ K-01 Serf collects debris. 04187_ U-05 Engineer lays Concrete. 04190_ K-01 Serf collects debris. 04190_ U-05 Engineer lays Concrete. 04190_ Aluminum Leg+ destroyed. 04191_ U-05 Engineer lays Concrete. 04191_ K-01 Serf collects debris. 04192_ U-05 Engineer lays Concrete. 04193_ K-01 Serf collects debris. 04193_ U-05 Engineer lays Concrete. 04194_ K-01 Serf collects debris. 04194_ U-05 Engineer lays Concrete. Map ----- +----------------------------------------------------+ | ???????????????????????????????????? ?????## # | | ???????????????????????????????????? ?????# | | ???????????????????????????????????? ?????# | | ???????????????????????????????????? #????# | | ???????????????????????????????????? ?????# | | ??????????????????????????#######??? ?????# | | ????????????????????????############ ?????# | | ??????????????????????? #????#! | | ???????????????????###?#### #######! | | ????????????????? "" =!*% | | ????????????????? "T !%=| | | ???????????????? !! | | ???????????????? | | ??????????????? =%! | | ??????????????? | | ??????????????? = | | ????????????????? m | | ??????????????????##; k | | ????????????### #### ####### | | ???????????? ##+#### # #???# | | ???????????? # / ; k # ##??# | | ???????????? # ]; ! # ##??# | | ???????????? # ; [ ####??# | | ?????????????? """ + | u ###???# | | ??????????????????? # !%= [ ###???# | | ??????????????????? # Y @ = ###???? ? | | ???????????????????### #######;;######????? ??? | | ??????????????????? ###############???????????? | | ?????????????????? ??????? ???????????????? | | ????????????????? ????????????????????????????? | | ????????????????? ?????????????????????????????? | | ???????????????? ?????????????????????????????? | | ?????????????? ??????????????????????????????? | | ???????????? ???????????????????????????????? | | ????????????## h????????????????????????????????? | | ???????????? # ????????????????????????????????? | | ???????????? ### p???????????????????????????????? | | ??????????????## ????????????????????????????????? | | ????????????????px???????????????????????????????? | | ?????????????????????????????????????????????????? | | ?????????????????????????????????????????????????? | | ?>???????????????????????????????????????????????? | | ?????????????????????????????????????????????????? | | ?????????????????????????????????????????????????? | | ?????????????????????????????????????????????????? | | ?????????????????????????????????????????????????? | | ??????????????????????????????????????????? ??? | | ??????????????????????????????????????? ? ??? | | ??????????????????????????????????????# ??? | | ??????????????????????????????????????# ??? | +----------------------------------------------------+ Best States ------------- Heat Dissipation 61 Energy Generation 16 Energy Capacity 290 Matter Stores 300 Matter Capacity 300 Sight Range 20 Robot Scan Range 14 Terrain Scan Density 10 Corruption Block 8 Armor Coverage 150 Evasion (%) 55 Offensive Hacking 10 Item Schematics ----------------- System Restoration Module | -7/Factory | Scanalyzed Cryofiber Web | -7/Factory | Extracted Arm. Leg | -7/Factory | Hacked Robot Schematics ------------------ None Fabricated ------------ Nothing Repaired ---------- Nothing Studied --------- Aluminum Leg | -8/Materials | Hacked Carbon-fiber Leg | -7/Factory | Hacked Alien Tech Used ----------------- None Achievements -------------- Botjacking Jackpot Resistances Are Futile Challenges ------------ None Game ------ Seed RapidVoltaicDrivehammer Manual? 0 Play Time 01:20:10 Cumulative 200.7 hours Start 2025.12.05 @ 10:33:50 End 2025.12.06 @ 10:46:19 Sessions 3 Manual Loads 0 Difficulty Rogue Special Mode None Game No. 182 Rogue 182 Adventurer 0 Explorer 0 Win Type - Total 0 Types 0/0/0/0/0/0/0/0/0/0 Lore% 26 Gallery% 40 Achievement% 24 Wizard Run 0 Options --------- Layout 0 ASCII 1 Keyboard 0 Movement Numpad Keybinds 0 Fullscreen 1 Font 18/SmallcapsGlow Map View 76x50 Zoom Use 0% Tactical HUD 1 Map Filters NONE Filters NONE Steam 1 RUN: 662f1c6c-8a7c-434c-b6e7-73fc703c7429